[Event "Titled Tuesday Blitz May 2 Early 2023"]
[White "Barria Santos, Jose Guilherme"]
[Black "Pein, Jonathan"]
[WhiteFideId "1939300"]
[BlackFideId "417092"]
[WhiteElo "2266"]
[BlackElo "2151"]
[Result "0-1"]
[Round "11"]
[TimeControl "180+2"]
[Date "2023.05.03"]
[WhiteClock "0:00:00"]
[BlackClock "0:00:00"]

1. d4 {[%clk 0:00:01]}  g6 {[%clk 0:00:01]} 2. c4 {[%clk 0:00:01]}  Bg7 {[%clk 0:00:01]} 3. Nc3 {[%clk 0:00:01]}  d6 {[%clk 0:00:01]} 4. e4 {[%clk 0:00:01]}  Nf6 {[%clk 0:00:01]} 5. Be2 {[%clk 0:00:01]}  O-O {[%clk 0:00:01]} 6. Bg5 {[%clk 0:00:01]}  c5 {[%clk 0:00:01]} 7. d5 {[%clk 0:00:01]}  e6 {[%clk 0:00:01]} 8. Nf3 {[%clk 0:00:01]}  h6 {[%clk 0:00:01]} 9. Bf4 {[%clk 0:00:01]}  exd5 {[%clk 0:00:01]} 10. exd5 {[%clk 0:00:01]}  Qb6 {[%clk 0:00:01]} 11. Qc1 {[%clk 0:00:01]}  Bf5 {[%clk 0:00:01]} 12. O-O {[%clk 0:00:01]}  Re8 {[%clk 0:00:01]} 13. a3 {[%clk 0:00:01]}  Kh7 {[%clk 0:00:01]} 14. Re1 {[%clk 0:00:01]}  Nbd7 {[%clk 0:00:01]} 15. Na4 {[%clk 0:00:01]}  Qa6 {[%clk 0:00:01]} 16. Nc3 {[%clk 0:00:01]}  Qb6 {[%clk 0:00:01]} 17. Nh4 {[%clk 0:00:01]}  Rxe2 {[%clk 0:00:01]} 18. Nxe2 {[%clk 0:00:00]}  Bd3 {[%clk 0:00:01]} 19. Nf3 {[%clk 0:00:00]}  Nh5 {[%clk 0:00:01]} 20. Be3 {[%clk 0:00:00]}  Qxb2 {[%clk 0:00:01]} 21. Qxb2 {[%clk 0:00:00]}  Bxb2 {[%clk 0:00:01]} 22. Ra2 {[%clk 0:00:00]}  Bg7 {[%clk 0:00:01]} 23. Rc1 {[%clk 0:00:00]}  Re8 {[%clk 0:00:00]} 24. g3 {[%clk 0:00:00]}  Nb6 {[%clk 0:00:00]} 25. Kf1 {[%clk 0:00:00]}  Nxc4 {[%clk 0:00:00]} 26. g4 {[%clk 0:00:00]}  Nxe3+ {[%clk 0:00:00]} 27. fxe3 {[%clk 0:00:00]}  Nf6 {[%clk 0:00:00]} 28. g5 {[%clk 0:00:00]}  Nxd5 {[%clk 0:00:00]} 29. gxh6 {[%clk 0:00:00]}  Bxh6 {[%clk 0:00:00]} 30. Ke1 {[%clk 0:00:00]}  Rxe3 {[%clk 0:00:00]} 31. Ng1 {[%clk 0:00:00]}  Nf4 {[%clk 0:00:00]} 32. Rd1 {[%clk 0:00:00]}  d5 {[%clk 0:00:00]} 33. Kf2 {[%clk 0:00:00]}  Nxe2 {[%clk 0:00:00]} 34. Nxe2 {[%clk 0:00:00]}  Bc4 {[%clk 0:00:00]} 35. Rb2 {[%clk 0:00:00]}  b6 {[%clk 0:00:00]} 36. a4 {[%clk 0:00:00]}  Re6 {[%clk 0:00:00]} 37. Re1 {[%clk 0:00:00]}  Bg7 {[%clk 0:00:00]} 38. a5 {[%clk 0:00:00]}  Bxb2 {[%clk 0:00:00]} 0-1


[Site "https://www.chess.com"]

[Event "Titled Tuesday Blitz May 2 Early 2023"]
[White "Elissalt Cardenas, Hector"]
[Black "Ankudinova, Yelena"]
[WhiteFideId "3500632"]
[BlackFideId "13702114"]
[WhiteElo "2202"]
[BlackElo "1937"]
[Result "0-1"]
[Round "11"]
[TimeControl "180+2"]
[Date "2023.05.03"]
[WhiteClock "0:00:00"]
[BlackClock "0:00:01"]

1. d4 {[%clk 0:00:00]}  d5 {[%clk 0:00:01]} 2. c4 {[%clk 0:00:00]}  dxc4 {[%clk 0:00:01]} 3. Nf3 {[%clk 0:00:00]}  Nf6 {[%clk 0:00:01]} 4. Nbd2 {[%clk 0:00:00]}  a6 {[%clk 0:00:01]} 5. Nxc4 {[%clk 0:00:00]}  b5 {[%clk 0:00:01]} 6. Nce5 {[%clk 0:00:00]}  Bb7 {[%clk 0:00:01]} 7. e3 {[%clk 0:00:00]}  e6 {[%clk 0:00:01]} 8. Be2 {[%clk 0:00:00]}  Nbd7 {[%clk 0:00:01]} 9. O-O {[%clk 0:00:00]}  c5 {[%clk 0:00:01]} 10. dxc5 {[%clk 0:00:00]}  Bxc5 {[%clk 0:00:01]} 11. b3 {[%clk 0:00:00]}  Nxe5 {[%clk 0:00:01]} 12. Nxe5 {[%clk 0:00:00]}  Qxd1 {[%clk 0:00:01]} 13. Rxd1 {[%clk 0:00:00]}  O-O {[%clk 0:00:01]} 14. Bb2 {[%clk 0:00:00]}  Rfd8 {[%clk 0:00:01]} 15. Kf1 {[%clk 0:00:00]}  Rac8 {[%clk 0:00:01]} 16. Bd3 {[%clk 0:00:00]}  h6 {[%clk 0:00:01]} 17. Ke2 {[%clk 0:00:00]}  Bxg2 {[%clk 0:00:01]} 18. f3 {[%clk 0:00:00]}  Bh3 {[%clk 0:00:01]} 19. Rg1 {[%clk 0:00:00]}  Nh5 {[%clk 0:00:01]} 20. Ng4 {[%clk 0:00:00]}  Bxg4 {[%clk 0:00:01]} 21. Rxg4 {[%clk 0:00:00]}  Be7 {[%clk 0:00:01]} 22. Rag1 {[%clk 0:00:00]}  g6 {[%clk 0:00:01]} 23. Bxg6 {[%clk 0:00:00]}  fxg6 {[%clk 0:00:01]} 24. Rxg6+ {[%clk 0:00:00]}  Kf7 {[%clk 0:00:01]} 25. Rxh6 {[%clk 0:00:00]}  Rc2+ {[%clk 0:00:01]} 0-1


[Site "https://www.chess.com"]